fUST/lending_fUST_20250905
["ID","MTS","AMOUNT","RATE_DAILY","PERIOD"]
[383616842,1757041846538,-480.0,0.00014803,2]
[383616843,1757041846547,-500.81467083,0.00014803,2]
[383616844,1757041846557,-481.9744145,0.00014803,2]
[383616845,1757041846567,-480.0,0.00014803,2]
[383616846,1757041846576,-480.0,0.00014803,2]
[383616847,1757041846586,-480.0,0.00014803,2]
[383616848,1757041846595,-480.0,0.00014803,2]
[383616849,1757041846605,-480.0,0.00014803,2]
[383616850,1757041846615,-480.0,0.00014803,2]
[383616851,1757041846625,-480.0,0.00014803,2]
[383616852,1757041846635,-480.0,0.00014803,2]
[383616853,1757041846645,-480.0,0.00014803,2]
[383616854,1757041846655,-509.65,0.00014803,2]
[383616855,1757041846664,-480.0,0.00014803,2]
[383616856,1757041846674,-483.65946977,0.00014803,2]
[383616857,1757041846683,-480.0,0.00014803,2]
[383616858,1757041846692,-480.0,0.00014803,2]
[383616859,1757041846702,-480.0,0.00014803,2]
[383616860,1757041846711,-480.0,0.00014803,2]
[383616861,1757041846721,-484.19106515,0.00014803,2]
[383616862,1757041846730,-480.0,0.00014803,2]
[383616863,1757041846739,-480.0,0.00014803,2]
[383616864,1757041846749,-480.0,0.00014803,2]
[383616865,1757041846758,-484.86472151,0.00014803,2]
[383616866,1757041846767,-2039.82,0.00014803,2]
[383616867,1757041846776,-480.0,0.00014803,2]
[383616868,1757041846786,-484.57342237,0.00014803,2]
[383616869,1757041846796,-480.0,0.00014803,2]
[383616870,1757041846805,-926.48,0.00014803,2]
[383616871,1757041846815,-480.0,0.00014803,2]
[383616872,1757041846824,-480.0,0.00014803,2]
[383616873,1757041846834,-480.0,0.00014803,2]
[383616874,1757041846843,-480.0,0.00014803,2]
[383616875,1757041846852,-501.23,0.00014803,2]
[383616876,1757041846861,-480.0,0.00014803,2]
[383616877,1757041846870,-481.6580873,0.00014803,2]
[383616878,1757041846880,-480.0,0.00014803,2]
[383616879,1757041846889,-480.0,0.00014803,2]
[383616880,1757041846898,-485.2958883,0.00014803,2]
[383616881,1757041846908,-480.0,0.00014803,2]
[383616882,1757041846917,-480.0,0.00014803,2]
[383616883,1757041846927,-480.0,0.00014803,2]
[383616884,1757041846936,-480.0,0.00014803,2]
[383616885,1757041846946,-480.0,0.00014803,2]
[383616886,1757041846955,-480.0,0.00014803,2]
[383616887,1757041846965,-480.0,0.00014803,2]
[383616888,1757041846978,-1054.09,0.00014803,2]
[383616889,1757041846988,-480.0,0.00014803,2]
[383616890,1757041846998,-480.0,0.00014803,2]
[383616891,1757041847007,-480.0,0.00014803,2]
[383616892,1757041847018,-272.48128407,0.00014803,2]
[383616893,1757041847027,-1277.2,0.00014803,2]
[383616894,1757041847037,-480.0,0.00014803,2]
[383616895,1757041847046,-480.0,0.00014803,2]
[383616896,1757041847056,-480.0,0.00014803,2]
[383616897,1757041847067,-480.0,0.00014803,2]
[383616898,1757041847077,-480.0,0.00014803,2]
[383616899,1757041847087,-480.0,0.00014803,2]
[383616900,1757041847096,-480.0,0.00014803,2]
[383616901,1757041847107,-630.25,0.00014803,2]
[383616902,1757041847118,-480.0,0.00014803,2]
[383616903,1757041847127,-480.0,0.00014803,2]
[383616904,1757041847136,-480.0,0.00014803,2]
[383616905,1757041847150,-480.0,0.00014803,2]
[383616906,1757041847159,-480.0,0.00014803,2]
[383616907,1757041847168,-8006.11,0.00014803,2]
[383616908,1757041847179,-480.0,0.00014803,2]
[383616909,1757041847189,-480.0,0.00014803,2]
[383616910,1757041847198,-480.0,0.00014803,2]
[383616911,1757041847209,-481.52900057,0.00014803,2]
[383616912,1757041847219,-480.0,0.00014803,2]
[383616913,1757041847231,-480.0,0.00014803,2]
[383616914,1757041847241,-485.55071256,0.00014803,2]
[383616915,1757041847250,-480.0,0.00014803,2]
[383616916,1757041847259,-480.0,0.00014803,2]
[383616917,1757041847268,-480.0,0.00014803,2]
[383616918,1757041847278,-480.0,0.00014803,2]
[383616919,1757041847287,-480.0,0.00014803,2]
[383616920,1757041847297,-720.26,0.00014803,2]
[383616921,1757041847308,-483.84868711,0.00014803,2]
[383616922,1757041847317,-1068.95,0.00014803,2]
[383616923,1757041847327,-482.13806269,0.00014803,2]
[383616924,1757041847338,-480.0,0.00014803,2]
[383616925,1757041847347,-480.0,0.00014803,2]
[383616926,1757041847356,-481.60744015,0.00014803,2]
[383616927,1757041847365,-480.0,0.00014803,2]
[383616928,1757041847376,-480.0,0.00014803,2]
[383616929,1757041847386,-480.0,0.00014803,2]
[383616930,1757041847398,-480.0,0.00014803,2]
[383616931,1757041847412,-480.0,0.00014803,2]
[383616932,1757041847422,-480.0,0.00014803,2]
[383616933,1757041847433,-480.0,0.00014803,2]
[383616934,1757041847442,-264.8644443,0.00014803,2]
[383616935,1757041847452,-482.13802558,0.00014803,2]
[383616936,1757041847462,-480.0,0.00014803,2]
[383616937,1757041847471,-593.52826285,0.00014803,2]
[383616938,1757041847481,-480.0,0.00014803,2]
[383616939,1757041847491,-480.0,0.00014803,2]
[383616940,1757041847503,-480.0,0.00014803,2]
[383616941,1757041847513,-480.0,0.00014803,2]
[383616942,1757041847523,-990.26,0.00014803,2]
[383616943,1757041847534,-480.0,0.00014803,2]
[383616944,1757041847544,-480.0,0.00014803,2]
[383616945,1757041847553,-480.0,0.00014803,2]
[383616946,1757041847562,-480.0,0.00014803,2]
[383616947,1757041847572,-480.0,0.00014803,2]
[383616948,1757041847581,-480.0,0.00014803,2]
[383616949,1757041847590,-480.0,0.00014803,2]
[383616950,1757041847600,-480.0,0.00014803,2]
[383616951,1757041847611,-480.0,0.00014803,2]
[383616952,1757041847621,-482.89183714,0.00014803,2]
[383616953,1757041847632,-319.60951628,0.00014803,2]
[383616954,1757041847642,-1408.04270839,0.00014804,2]
[383616955,1757041847652,-480.0,0.00014805,2]
[383616956,1757041847661,-480.0,0.00014805,2]
[383616957,1757041847671,-798.51,0.00014805,2]
[383616958,1757041847680,-480.0,0.00014805,2]
[383616959,1757041847689,-480.0,0.00014805,2]
[383616960,1757041847699,-480.0,0.00014805,2]
[383616961,1757041847708,-482.09610446,0.00014805,2]
[383616962,1757041847718,-480.0,0.00014805,2]
[383616963,1757041847727,-481.9045692,0.00014805,2]
[383616964,1757041847736,-484.75304087,0.00014805,2]
[383616965,1757041847746,-480.0,0.00014805,2]
[383616966,1757041847755,-480.0,0.00014805,2]
[383616967,1757041847765,-482.2499039,0.00014805,2]
[383616968,1757041847774,-480.0,0.00014805,2]
[383616969,1757041847783,-480.0,0.00014805,2]
[383616970,1757041847792,-483.88668735,0.00014805,2]
[383616971,1757041847802,-480.0,0.00014805,2]
[383616972,1757041847812,-172.51549869,0.00014805,2]
[383616973,1757041847821,-482.47110658,0.00014805,2]
[383616974,1757041847831,-480.0,0.00014805,2]
[383616975,1757041847840,-482.68865625,0.00014805,2]
[383616976,1757041847850,-480.0,0.00014805,2]
[383616977,1757041847859,-482.23792737,0.00014805,2]
[383616978,1757041847868,-480.0,0.00014805,2]
[383616979,1757041847877,-480.0,0.00014805,2]
[383616980,1757041847887,-480.0,0.00014805,2]
[383616981,1757041847896,-480.0,0.00014805,2]
[383616982,1757041847906,-480.0,0.00014805,2]
[383616983,1757041847915,-480.0,0.00014805,2]
[383616984,1757041847924,-480.0,0.00014805,2]
[383616985,1757041847933,-480.0,0.00014805,2]
[383616986,1757041847943,-480.0,0.00014805,2]
[383616987,1757041847953,-480.0,0.00014805,2]
[383616988,1757041847965,-480.0,0.00014805,2]
[383616989,1757041847974,-480.0,0.00014805,2]
[383616990,1757041847983,-480.0,0.00014805,2]
[383616991,1757041847993,-480.0,0.00014805,2]
[383616992,1757041848002,-480.0,0.00014805,2]
[383616993,1757041848011,-480.0,0.00014805,2]
[383616994,1757041848021,-480.0,0.00014805,2]
[383616995,1757041848030,-480.0,0.00014805,2]
[383616996,1757041848040,-480.0,0.00014805,2]
[383616997,1757041848050,-486.39692521,0.00014805,2]
[383616998,1757041848060,-432.34274017,0.00014805,2]
[383616999,1757041848069,-483.62172023,0.00014805,2]
[383617000,1757041848079,-480.0,0.00014805,2]
[383617001,1757041848089,-481.82655439,0.00014805,2]
[383617002,1757041848099,-484.59792068,0.00014805,2]
[383617003,1757041848108,-480.0,0.00014805,2]
[383617004,1757041848118,-480.0,0.00014805,2]
[383617005,1757041848134,-209.63016193,0.00014806,2]
[383617006,1757041848144,-480.0,0.00014806,2]
[383617007,1757041848153,-484.92933333,0.00014806,2]
[383617008,1757041848162,-480.0,0.00014806,2]
[383617009,1757041848172,-480.0,0.00014806,2]
[383617010,1757041848181,-480.0,0.00014806,2]
[383617011,1757041848191,-480.0,0.00014806,2]
[383617012,1757041848200,-480.0,0.00014806,2]
[383617013,1757041848210,-480.0,0.00014806,2]
[383617014,1757041848220,-483.43150584,0.00014806,2]
[383617015,1757041848230,-483.01994733,0.00014806,2]
[383617016,1757041848239,-484.5112355,0.00014806,2]
[383617017,1757041848248,-480.0,0.00014806,2]
[383617018,1757041848258,-480.0,0.00014806,2]
[383617019,1757041848267,-480.0,0.00014806,2]
[383617020,1757041848276,-480.0,0.00014806,2]
[383617021,1757041848286,-486.66925585,0.00014806,2]
[383617022,1757041848296,-480.0,0.00014806,2]
[383617023,1757041848305,-485.8674501,0.00014806,2]
[383617024,1757041848315,-484.0484773,0.00014806,2]
[383617025,1757041848324,-478.38339087,0.00014806,2]
[383617026,1757041848333,-480.0,0.00014806,2]
[383617027,1757041848343,-183.97725829,0.00014806,2]
[383617028,1757041848352,-480.0,0.00014806,2]
[383617029,1757041848361,-450.86803246,0.00014806,2]
[383617030,1757041848370,-480.0,0.00014806,2]
[383617031,1757041848380,-480.0,0.00014806,2]
[383617032,1757041848390,-293.17554813,0.00014806,2]
[383617033,1757041848399,-480.0,0.00014806,2]
[383617034,1757041848409,-480.0,0.00014806,2]
[383617035,1757041848418,-480.0,0.00014806,2]
[383617036,1757041848428,-492.92289636,0.00014806,2]
[383617037,1757041848438,-471.38397306,0.00014806,2]
[383617038,1757041848447,-480.0,0.00014806,2]
[383617039,1757041848457,-483.36055623,0.00014806,2]
[383617040,1757041848466,-482.75648786,0.00014806,2]
[383617041,1757041848475,-480.0,0.00014806,2]
[383617042,1757041848485,-541.13726435,0.00014807,2]
[383617043,1757041848494,-500.0,0.00014812,2]
[383617044,1757041848503,-500.0,0.00014873,2]
[383617045,1757041848513,-500.0,0.00014873,2]
[383617046,1757041848522,-250.0,0.00014933,2]
[383617047,1757041848532,-1239.0212893,0.00014972,2]
[383617048,1757041848542,-1052.0244988,0.00014972,2]
[383617049,1757041848552,-6486.79615,0.00014977,2]
[383617050,1757041848561,-173.36609248,0.00014978,2]
[383617051,1757041848571,-160.0,0.00015,2]
[383617052,1757041848580,-185.819,0.00015032,2]
[383617053,1757041848589,-501.45864334,0.00015073,2]
[383617054,1757041848599,-500.0,0.00015073,2]
[383617055,1757041848608,-500.0,0.00015073,2]
[383617056,1757041848617,-151.0,0.00015073,2]
[383617057,1757041848626,-153.015766,0.00015073,2]
[383617058,1757041848636,-151.0,0.00015073,2]
[383617059,1757041848645,-166.03477,0.00015073,2]
[383617060,1757041848655,-166.03477,0.00015073,2]
[383617061,1757041848664,-166.03477,0.00015073,2]
[383617062,1757041848674,-151.0,0.00015073,2]
[383617063,1757041848683,-166.03477,0.00015073,2]
[383617064,1757041848692,-500.0,0.00015074,2]
[383617065,1757041848702,-386.53573718,0.00015074,2]
[383617066,1757041848915,-16.08299577,0.00015074,2]
[383617067,1757041848925,-500.0,0.00015074,2]
[383617068,1757041848935,-132.11694953,0.00015074,2]
[383617069,1757041848947,-367.88305047,0.00015074,2]
[383617070,1757041848956,-500.0,0.00015074,2]
[383617071,1757041848966,-163.73552625,0.00015074,2]
[383617085,1757041906292,152.0,0.00025,90]
[383617087,1757042038734,689.406735,0.00013699,2]
[383617089,1757042237376,500.0,0.00014,2]
[383617093,1757042847060,151.0,0.00027397,120]
[383617110,1757042903773,230.91941122,0.0001525,6]
[383617111,1757042916479,274.25687453,0.00024,30]
[383617132,1757043032387,-658.64338379,0.00014699,2]
[383617134,1757043032397,-173.36609248,0.00014701,2]
[383617136,1757043032406,-500.0,0.00014773,2]
[383617138,1757043032415,-500.0,0.00014773,2]
[383617140,1757043032424,-500.0,0.00014773,2]
[383617142,1757043032433,-167.84307753,0.00014773,2]
[383617144,1757043032444,-332.15692247,0.00014773,2]
[383617146,1757043032453,-468.0,0.00014797,2]
[383617148,1757043032463,-141.72574486,0.00014797,2]
[383617156,1757043032530,-158.27425514,0.00014797,2]
[383617158,1757043032543,-300.0,0.00014797,2]
[383617160,1757043032554,-300.0,0.00014797,2]
[383617162,1757043032563,-300.0,0.00014797,2]
[383617164,1757043032572,-546.3228855,0.00014797,2]
[383617167,1757043032588,-653.6771145,0.00014797,2]
[383617169,1757043032596,-480.0,0.00014798,2]
[383617171,1757043032605,-480.0,0.00014798,2]
[383617173,1757043032613,-570.29,0.00014798,2]
[383617175,1757043032624,-916.76,0.00014798,2]
[383617176,1757043032632,-480.0,0.00014798,2]
[383617178,1757043032641,-369.2728855,0.00014798,2]
[383617629,1757043038177,-110.7271145,0.00014798,2]
[383617630,1757043038186,-166.916,0.00014798,2]
[383617631,1757043038196,-480.0,0.00014798,2]
[383617632,1757043038205,-480.0,0.00014798,2]
[383617633,1757043038213,-480.0,0.00014798,2]
[383617634,1757043038223,-480.0,0.00014798,2]
[383617635,1757043038232,-480.0,0.00014798,2]
[383617636,1757043038242,-485.97379646,0.00014798,2]
[383617637,1757043038251,-480.0,0.00014798,2]
[383617638,1757043038261,-480.0,0.00014798,2]
[383617639,1757043038270,-60.82268962,0.00014798,2]
[383617640,1757043038281,-419.17731038,0.00014798,2]
[383617641,1757043038290,-14.71343511,0.00014798,2]
[383617642,1757043038301,-465.28656489,0.00014798,2]
[383617643,1757043038311,-410.56157373,0.00014798,2]
[383617644,1757043038319,-480.0,0.00014798,2]
[383617645,1757043038329,-480.0,0.00014798,2]
[383617646,1757043038339,-480.0,0.00014798,2]
[383617647,1757043038348,-568.16,0.00014798,2]
[383617648,1757043038358,-187.11316027,0.00014798,2]
[383617649,1757043038375,-1303.87683973,0.00014798,2]
[383617650,1757043038384,-480.0,0.00014798,2]
[383617651,1757043038394,-663.32,0.00014798,2]
[383617652,1757043038403,-480.0,0.00014798,2]
[383617653,1757043038412,-485.58899757,0.00014798,2]
[383617654,1757043038423,-480.0,0.00014798,2]
[383617655,1757043038433,-380.29601066,0.00014798,2]
[383617656,1757043038445,-99.70398934,0.00014798,2]
[383617657,1757043038455,-480.0,0.00014798,2]
[383617658,1757043038464,-480.0,0.00014798,2]
[383617659,1757043038474,-480.0,0.00014798,2]
[383617660,1757043038483,-480.0,0.00014798,2]
[383617661,1757043038493,-382.8127125,0.00014798,2]
[383617662,1757043038502,-194.9777001,0.00014798,2]
[383617663,1757043038512,-480.0,0.00014798,2]
[383617664,1757043038521,-480.0,0.00014798,2]
[383617665,1757043038530,-18.85260971,0.00014799,2]
[383617666,1757043038542,-144.44170555,0.00014799,2]
[383617668,1757043038554,-480.0,0.00014799,2]
[383617670,1757043038563,-83.55358464,0.00014799,2]
[383617671,1757043038574,-396.44641536,0.00014799,2]
[383617672,1757043038583,-480.0,0.00014799,2]
[383617673,1757043038592,-480.0,0.00014799,2]
[383617674,1757043038607,-480.0,0.00014799,2]
[383617675,1757043038617,-486.30486026,0.00014799,2]
[383617676,1757043038625,-480.0,0.00014799,2]
[383617677,1757043038636,-480.0,0.00014799,2]
[383617678,1757043038645,-480.0,0.00014799,2]
[383617679,1757043038655,-480.0,0.00014799,2]
[383617680,1757043038665,-486.11966862,0.00014799,2]
[383617681,1757043038674,-480.0,0.00014799,2]
[383617682,1757043038683,-480.0,0.00014799,2]
[383617683,1757043038693,-480.0,0.00014799,2]
[383617684,1757043038702,-480.0,0.00014799,2]
[383617685,1757043038711,-480.0,0.00014799,2]
[383617686,1757043038720,-344.5534394,0.00014799,2]
[383617688,1757043040591,-135.4465606,0.00014799,2]
[383617689,1757043040601,-480.0,0.00014799,2]
[383617690,1757043040612,-480.0,0.00014799,2]
[383617691,1757043040623,-480.0,0.00014799,2]
[383617692,1757043040632,-480.0,0.00014799,2]
[383617693,1757043040642,-480.0,0.00014799,2]
[383617694,1757043040652,-480.0,0.00014799,2]
[383617695,1757043040664,-484.99408432,0.00014799,2]
[383617696,1757043040673,-480.0,0.00014799,2]
[383617697,1757043040682,-480.0,0.00014799,2]
[383617698,1757043040692,-480.0,0.00014799,2]
[383617699,1757043040701,-480.0,0.00014799,2]
[383617700,1757043040710,-480.0,0.00014799,2]
[383617701,1757043040719,-480.0,0.00014799,2]
[383617702,1757043040729,-480.0,0.00014799,2]
[383617703,1757043040741,-480.0,0.00014799,2]
[383617704,1757043040750,-480.0,0.00014799,2]
[383617705,1757043040759,-480.0,0.00014799,2]
[383617706,1757043040769,-481.6152158,0.00014799,2]
[383617707,1757043040779,-480.0,0.00014799,2]
[383617708,1757043040789,-480.0,0.00014799,2]
[383617709,1757043040800,-480.0,0.00014799,2]
[383617710,1757043040811,-480.0,0.00014799,2]
[383617711,1757043040821,-480.0,0.00014799,2]
[383617712,1757043040831,-480.0,0.00014799,2]
[383617713,1757043040841,-480.0,0.00014799,2]
[383617714,1757043040852,-480.0,0.00014799,2]
[383617715,1757043040863,-480.0,0.00014799,2]
[383617716,1757043040873,-480.0,0.00014799,2]
[383617717,1757043040884,-480.0,0.00014799,2]
[383617718,1757043040896,-480.0,0.00014799,2]
[383617719,1757043040906,-483.54059807,0.00014799,2]
[383617720,1757043040916,-480.0,0.00014799,2]
[383617721,1757043040927,-480.0,0.00014799,2]
[383617722,1757043040939,-767.21,0.00014799,2]
[383617723,1757043040949,-480.0,0.00014799,2]
[383617724,1757043040959,-480.0,0.00014799,2]
[383617725,1757043040971,-480.0,0.00014799,2]
[383617726,1757043040981,-480.0,0.00014799,2]
[383617727,1757043040991,-480.0,0.00014799,2]
[383617728,1757043041000,-480.0,0.00014799,2]
[383617729,1757043041010,-1954.83,0.00014799,2]
[383617730,1757043041019,-937.56,0.00014799,2]
[383617731,1757043041029,-480.0,0.00014799,2]
[383617732,1757043041039,-589.78,0.00014799,2]
[383617733,1757043041048,-480.0,0.00014799,2]
[383617734,1757043041058,-504.46,0.00014799,2]
[383617735,1757043041067,-480.0,0.00014799,2]
[383617736,1757043041077,-480.0,0.00014799,2]
[383617737,1757043041086,-480.0,0.00014799,2]
[383617738,1757043041095,-480.0,0.00014799,2]
[383617739,1757043041105,-480.0,0.00014799,2]
[383617740,1757043041115,-480.0,0.00014799,2]
[383617741,1757043041124,-480.0,0.00014799,2]
[383617742,1757043041134,-1100.17,0.00014799,2]
[383617743,1757043041143,-480.0,0.00014799,2]
[383617744,1757043041154,-480.0,0.00014799,2]
[383617745,1757043041164,-480.0,0.00014799,2]
[383617746,1757043041174,-480.0,0.00014799,2]
[383617747,1757043041183,-480.0,0.00014799,2]
[383617748,1757043041194,-1287.28,0.00014799,2]
[383617749,1757043041203,-480.0,0.00014799,2]
[383617750,1757043041213,-480.0,0.00014799,2]
[383617751,1757043041222,-480.0,0.00014799,2]
[383617752,1757043041231,-639.41,0.00014799,2]
[383617753,1757043041241,-480.0,0.00014799,2]
[383617754,1757043041251,-480.0,0.00014799,2]
[383617755,1757043041261,-7692.52,0.00014799,2]
[383617756,1757043041271,-480.0,0.00014799,2]
[383617757,1757043041282,-480.0,0.00014799,2]
[383617758,1757043041293,-482.42252403,0.00014799,2]
[383617759,1757043041302,-480.0,0.00014799,2]
[383617760,1757043041311,-480.0,0.00014799,2]
[383617761,1757043041320,-480.0,0.00014799,2]
[383617762,1757043041330,-480.0,0.00014799,2]
[383617763,1757043041340,-722.09,0.00014799,2]
[383617764,1757043041350,-480.0,0.00014799,2]
[383617765,1757043041361,-1073.21,0.00014799,2]
[383617766,1757043041370,-480.0,0.00014799,2]
[383617767,1757043041379,-484.87507311,0.00014799,2]
[383617768,1757043041388,-480.0,0.00014799,2]
[383617769,1757043041401,-480.0,0.00014799,2]
[383617770,1757043041412,-480.0,0.00014799,2]
[383617771,1757043041422,-480.0,0.00014799,2]
[383617772,1757043041432,-415.38087933,0.00014799,2]
[383617773,1757043041441,-480.0,0.00014799,2]
[383617774,1757043041451,-484.45520413,0.00014799,2]
[383617775,1757043041463,-480.0,0.00014799,2]
[383617776,1757043041476,-480.0,0.000148,2]
[383617777,1757043041488,-480.0,0.000148,2]
[383617778,1757043041502,-480.0,0.000148,2]
[383617779,1757043041517,-157.56400524,0.000148,2]
[383617780,1757043041529,-480.0,0.000148,2]
[383617781,1757043041539,-480.0,0.000148,2]
[383617782,1757043041551,-482.1093245,0.000148,2]
[383617783,1757043041561,-543.75385546,0.000148,2]
[383617784,1757043041574,-717.01,0.000148,2]
[383617785,1757043041589,-480.0,0.000148,2]
[383617786,1757043041601,-480.0,0.000148,2]
[383617787,1757043041613,-480.0,0.000148,2]
[383617788,1757043041626,-484.09988028,0.000148,2]
[383617789,1757043041636,-480.0,0.000148,2]
[383617790,1757043041647,-455.19829118,0.000148,2]
[383617791,1757043041657,-480.0,0.000148,2]
[383617792,1757043041668,-480.0,0.000148,2]
[383617793,1757043041677,-480.0,0.000148,2]
[383617794,1757043041686,-480.0,0.000148,2]
[383617795,1757043041696,-182.41528196,0.000148,2]
[383617796,1757043041707,-480.0,0.000148,2]
[383617797,1757043041717,-199.3805281,0.000148,2]
[383617798,1757043041727,-480.0,0.000148,2]
[383617799,1757043041738,-480.0,0.000148,2]
[383617800,1757043041748,-280.14064686,0.000148,2]
[383617801,1757043041757,-489.09441274,0.000148,2]
[383617802,1757043041860,-290.1761305,0.000148,2]
[383617803,1757043041890,-487.80256332,0.000148,2]
[383617804,1757043041902,-480.0,0.000148,2]
[383617805,1757043041911,-480.0,0.000148,2]
[383617806,1757043041921,-480.0,0.000148,2]
[383617807,1757043041930,-480.0,0.000148,2]
[383617808,1757043041939,-480.0,0.000148,2]
[383617809,1757043041948,-480.0,0.000148,2]
[383617810,1757043041958,-200.27816625,0.000148,2]
[383617811,1757043041967,-482.92239294,0.000148,2]
[383617812,1757043041976,-480.0,0.000148,2]
[383617813,1757043041985,-480.0,0.000148,2]
[383617814,1757043041995,-480.0,0.000148,2]
[383617815,1757043042005,-480.0,0.000148,2]
[383617816,1757043042014,-480.0,0.000148,2]
[383617817,1757043042024,-317.8982504,0.000148,2]
[383617818,1757043042033,-526.0706302,0.000148,2]
[383617819,1757043042042,-484.18620917,0.000148,2]
[383617820,1757043042051,-483.04192798,0.000148,2]
[383617821,1757043042061,-480.0,0.000148,2]
[383617822,1757043042071,-480.0,0.000148,2]
[383617823,1757043042080,-590.45,0.000148,2]
[383617824,1757043042089,-484.73344031,0.000148,2]
[383617825,1757043042099,-531.13852828,0.000148,2]
[383617826,1757043042108,-480.0,0.000148,2]
[383617827,1757043042118,-480.0,0.000148,2]
[383617828,1757043042127,-480.0,0.000148,2]
[383617829,1757043042137,-480.0,0.000148,2]
[383617830,1757043042147,-484.14933089,0.000148,2]
[383617831,1757043042156,-228.54115922,0.000148,2]
[383617832,1757043042166,-480.0,0.000148,2]
[383617833,1757043042175,-482.85155341,0.000148,2]
[383617834,1757043042184,-480.0,0.000148,2]
[383617835,1757043042194,-483.24081576,0.000148,2]
[383617836,1757043042204,-483.93969162,0.000148,2]
[383617837,1757043042213,-480.0,0.000148,2]
[383617838,1757043042222,-480.0,0.000148,2]
[383617839,1757043042231,-432.47469209,0.000148,2]
[383617840,1757043042241,-624.83912263,0.000148,2]
[383617841,1757043042252,-482.42648845,0.000148,2]
[383617842,1757043042261,-480.0,0.000148,2]
[383617843,1757043042270,-483.44340584,0.000148,2]
[383617844,1757043042279,-485.14655388,0.000148,2]
[383617845,1757043042288,-480.0,0.000148,2]
[383617846,1757043042298,-484.67838737,0.000148,2]
[383617847,1757043042307,-480.0,0.000148,2]
[383617848,1757043042316,-223.85124375,0.000148,2]
[383617849,1757043042477,654.936398,0.00013699,2]
[383617852,1757043043372,-259.68574663,0.000148,2]
[383617853,1757043043382,-480.0,0.000148,2]
[383617854,1757043043391,-484.50691139,0.000148,2]
[383617855,1757043043401,-480.0,0.000148,2]
[383617856,1757043043410,-484.00896315,0.000148,2]
[383617857,1757043043419,-480.0,0.000148,2]
[383617858,1757043043430,-480.0,0.000148,2]
[383617859,1757043043440,-198.05329694,0.000148,2]
[383617860,1757043043451,-201.44453058,0.000148,2]
[383617861,1757043043460,-277.61105712,0.000148,2]
[383617862,1757043043476,-202.38894288,0.000148,2]
[383617863,1757043043486,-78.6956009,0.000148,2]
[383617867,1757043046346,-480.0,0.00014799,2]
[383617869,1757043046356,-401.3043991,0.000148,2]
[383617871,1757043046366,-480.0,0.000148,2]
[383617873,1757043046375,-585.60523873,0.000148,2]
[383617875,1757043046385,-487.08283498,0.000148,2]
[383617877,1757043046394,-480.0,0.000148,2]
[383617879,1757043046403,-480.0,0.000148,2]
[383617881,1757043046413,-542.0841578,0.000148,2]
[383617883,1757043046422,-434.19913564,0.000148,2]
[383617884,1757043046431,-332.59236464,0.00014801,2]
[383617890,1757043769967,1393.16009337,0.00013932,2]
[383617892,1757043792777,1393.16009337,0.00013932,2]
[383617896,1757043954581,656.694357,0.00013699,2]